bitfinex-derivatives/quotes_BTCF0:USTF0_20210102
["timestamp","ask_amount","ask_price","bid_price","bid_amount"]
[1609570036360,0.01040087,29647.0,29637.0,0.04149704]
[1609570036558,0.01040087,29647.0,29643.0,0.0003767]
[1609570036859,0.01040087,29647.0,29638.0,0.0003767]
[1609570037058,0.01040087,29647.0,29637.0,0.04149704]
[1609570037261,0.01040087,29647.0,29639.0,0.0003767]
[1609570037460,1.0,29640.0,29639.0,0.0003767]
[1609570037659,1.0,29640.0,29638.0,0.0003767]
[1609570037860,1.0,29640.0,29637.0,0.04112034]
[1609570038061,1.0,29640.0,29639.0,0.00037669]
[1609570038461,1.0,29640.0,29637.0,0.04149703]
[1609570038661,1.0,29640.0,29638.0,0.00037669]
[1609570039261,1.0,29640.0,29637.0,0.041497]
[1609570039461,0.01040087,29647.0,29637.0,0.041497]
[1609570041466,0.01040087,29647.0,29637.0,1.041497]
[1609570041765,0.01040087,29647.0,29638.0,0.04148734]
[1609570041967,0.01040087,29647.0,29639.0,0.1015]
[1609570042165,0.01040087,29647.0,29642.0,5.5734]
[1609570042367,0.01040087,29647.0,29643.0,0.04148884]
[1609570042868,0.01040087,29647.0,29644.0,0.00037661]
[1609570043168,0.01040087,29647.0,29643.0,0.04148884]
[1609570043369,0.01040087,29647.0,29645.0,0.00037661]
[1609570043768,0.01040087,29647.0,29644.0,0.00037661]
[1609570043968,0.01040087,29647.0,29646.0,0.00037661]
[1609570044170,0.01040087,29647.0,29645.0,0.00037661]
[1609570044471,0.01040087,29647.0,29643.0,0.04148884]
[1609570044669,0.01040087,29647.0,29646.0,0.00037661]
[1609570045070,0.01040899,29650.0,29644.0,0.00037661]
[1609570045270,0.01040899,29650.0,29643.0,0.04148884]
[1609570045471,0.01040899,29650.0,29645.0,0.00037659]
[1609570045771,0.01040899,29650.0,29644.0,0.00037661]
[1609570045972,1.89823436,29655.0,29644.0,0.00037661]
[1609570045973,1.01042216,29655.0,29644.0,0.00037661]
[1609570046172,1.01042216,29655.0,29643.0,0.04148884]
[1609570046373,1.01042216,29655.0,29645.0,0.00037661]
[1609570046573,1.01042216,29655.0,29648.0,5.108]
[1609570047074,1.01042216,29655.0,29649.0,0.00037661]
[1609570047475,0.01042216,29655.0,29649.0,0.00037661]
[1609570048778,0.03106302,29655.0,29649.0,0.00037661]
[1609570051583,1.0,29653.0,29649.0,0.00037661]
[1609570055489,0.03106302,29655.0,29649.0,0.00037661]
[1609570055689,0.03106302,29655.0,29650.0,0.1011]
[1609570056089,0.03106302,29655.0,29651.0,0.00037658]
[1609570056788,0.03106302,29655.0,29649.0,0.00037661]
[1609570057189,0.03106302,29655.0,29652.0,0.00037661]
[1609570057392,0.03106302,29655.0,29649.0,0.00037661]
[1609570057591,1.0,29654.0,29653.0,0.00037661]
[1609570057891,1.0,29654.0,29650.0,0.00037661]
[1609570058193,1.0,29654.0,29653.0,0.00037661]
[1609570058391,1.0,29654.0,29651.0,0.00037661]
[1609570058794,1.0,29654.0,29653.0,0.00037661]
[1609570058993,1.0,29654.0,29649.0,0.00037661]
[1609570059192,1.0,29654.0,29653.0,0.00037661]
[1609570059494,1.03106302,29655.0,29650.0,0.00037661]
[1609570059693,1.03106302,29655.0,29653.0,0.00037661]
[1609570060094,1.01042216,29655.0,29651.0,0.00037661]
[1609570060293,1.01042216,29655.0,29654.0,0.00037661]
[1609570060496,1.01042216,29655.0,29649.0,0.00037661]
[1609570060797,1.01042216,29655.0,29654.0,0.00037661]
[1609570061197,1.01042216,29655.0,29650.0,0.00037661]
[1609570061396,1.01042216,29655.0,29654.0,0.00037661]
[1609570061597,0.01042216,29655.0,29651.0,0.00037661]
[1609570061896,0.01042216,29655.0,29649.0,0.00037661]
[1609570062097,0.01042216,29655.0,29652.0,0.00037661]
[1609570062497,0.01042216,29655.0,29650.0,0.00037661]
[1609570062697,0.01042216,29655.0,29653.0,0.00037732]
[1609570062897,0.01042216,29655.0,29651.0,0.00037732]
[1609570063197,0.01042216,29655.0,29654.0,0.00037732]
[1609570063599,1.0,29654.0,29649.0,0.00037732]
[1609570063798,1.0,29654.0,29648.0,5.108]
[1609570063999,1.0,29654.0,29650.0,0.00037732]
[1609570064198,1.0,29654.0,29649.0,0.00037732]
[1609570064499,1.0,29654.0,29651.0,0.00037732]
[1609570064800,1.0,29654.0,29649.0,0.00037732]
[1609570065000,1.0,29654.0,29652.0,0.00037732]
[1609570065201,1.0,29654.0,29653.0,0.7453]
[1609570065600,0.03107781,29655.0,29653.0,0.74567732]
[1609570065801,0.03107781,29655.0,29654.0,0.00037732]
[1609570067203,0.01042216,29655.0,29654.0,0.00037732]
[1609570067603,1.01042216,29655.0,29654.0,0.00037732]
[1609570068003,1.01042216,29655.0,29646.0,0.04148773]
[1609570068203,2.01083327,29655.0,29654.0,0.00037732]
[1609570068406,2.11073327,29655.0,29654.0,0.00037732]
[1609570068605,0.00041111,29654.0,29647.0,0.04148909]
[1609570068807,2.11073327,29655.0,29644.0,0.04111226]
[1609570069008,0.00041114,29653.0,29648.0,0.04149129]
[1609570069206,0.00041114,29653.0,29643.0,0.04149124]
[1609570069405,0.00041114,29654.0,29643.0,0.04149124]
[1609570069605,1.0,29649.0,29642.0,4.49602]
[1609570069805,1.0,29649.0,29644.0,0.04149083]
[1609570070005,1.0,29649.0,29643.0,0.04149267]
[1609570070206,5.0388,29649.0,29643.0,0.04149267]
[1609570070406,5.0388,29649.0,29645.0,0.04149281]
[1609570070606,5.0388,29649.0,29644.0,0.04149288]
[1609570070805,0.00041116,29648.0,29646.0,0.00037736]
[1609570071206,0.00041116,29648.0,29645.0,0.00037736]
[1609570071406,0.00041116,29648.0,29647.0,0.00037738]
[1609570071608,0.00041116,29648.0,29646.0,0.00037738]
[1609570071907,0.00041116,29650.0,29647.0,0.00037738]
[1609570072107,0.1024,29651.0,29647.0,0.00037738]
[1609570072508,0.00041118,29649.0,29643.0,0.04149451]
[1609570072708,0.00041118,29650.0,29648.0,0.00037738]
[1609570073008,0.00041118,29650.0,29643.0,0.04149449]
[1609570073207,0.00041118,29650.0,29649.0,0.00037736]
[1609570073607,0.00041118,29650.0,29643.0,0.04149449]
[1609570073807,0.00041118,29650.0,29649.0,0.00037737]
[1609570074007,0.00041118,29650.0,29644.0,0.00037737]
[1609570074409,0.00041118,29650.0,29649.0,0.00037737]
[1609570074609,0.00041118,29650.0,29643.0,0.04111713]
[1609570074809,0.00041118,29650.0,29649.0,0.00037736]
[1609570075208,0.00041118,29650.0,29643.0,0.04149449]
[1609570075408,0.00041118,29650.0,29649.0,0.00037736]
[1609570075608,1.00041118,29650.0,29644.0,0.00037736]
[1609570075909,1.0,29650.0,29643.0,0.04149447]
[1609570076110,1.0,29650.0,29645.0,0.00037734]
[1609570076409,0.18043158,29646.0,29644.0,0.00037734]
[1609570076711,0.18043158,29646.0,29643.0,0.04149447]
[1609570076909,0.18043158,29646.0,29645.0,0.00037734]
[1609570077211,0.18043158,29646.0,29644.0,0.00037734]
[1609570077412,0.18043158,29646.0,29643.0,0.04149447]
[1609570077813,0.18043158,29646.0,29645.0,0.00037734]
[1609570078009,0.18043158,29646.0,29643.0,0.04111713]
[1609570078010,0.18043158,29646.0,29644.0,0.00037734]
[1609570078210,0.18043158,29646.0,29645.0,0.00037734]
[1609570078910,0.18043158,29646.0,29643.0,0.04149445]
[1609570079110,0.18043158,29646.0,29645.0,0.00037732]
[1609570079312,0.18043158,29646.0,29644.0,0.00037732]
[1609570079510,0.18043158,29646.0,29643.0,0.04111713]
[1609570079711,0.18043158,29646.0,29645.0,0.00037733]
[1609570080212,0.18043158,29646.0,29643.0,0.04149446]
[1609570080415,0.18043158,29646.0,29645.0,0.18080891]
[1609570080612,0.18043158,29646.0,29645.0,0.18043158]
[1609570080913,0.18043158,29646.0,29645.0,0.22192038]
[1609570082318,0.18043158,29646.0,29645.0,4.81492038]
[1609570085421,0.18043158,29646.0,29645.0,0.22192038]
[1609570092529,1.0,29652.0,29645.0,0.0414888]
[1609570093028,1.0,29652.0,29643.0,0.04148698]
[1609570093229,0.18043158,29646.0,29645.0,0.18043158]
[1609570093529,0.18043158,29646.0,29645.0,0.22191856]
[1609570094129,1.0,29652.0,29645.0,5.30180888]
[1609570094330,1.0,29652.0,29645.0,1.22191567]
[1609570094730,0.00041107,29651.0,29646.0,0.00037728]
[1609570095132,1.0,29652.0,29650.0,0.18043158]
[1609570095330,1.0,29652.0,29651.0,1.0]
[1609570095530,0.0104312,29656.0,29651.0,1.0]
[1609570095730,0.0104312,29656.0,29651.0,1.00037724]
[1609570095931,0.00041102,29655.0,29652.0,0.00037724]
[1609570096129,0.00041102,29655.0,29651.0,1.00037724]
[1609570096330,0.00041102,29655.0,29651.0,0.00037724]
[1609570096529,0.00041102,29655.0,29652.0,0.00037724]
[1609570097029,0.00041102,29655.0,29651.0,1.00037724]
[1609570097229,0.00041102,29655.0,29654.0,0.18043158]
[1609570097529,0.00041102,29655.0,29654.0,1.1808088]
[1609570101233,0.00041099,29663.0,29654.0,1.1808088]
[1609570101834,0.00041099,29663.0,29655.0,0.00037722]
[1609570103236,0.00041099,29663.0,29662.0,0.18043158]
[1609570103837,0.00041099,29663.0,29662.0,0.1808088]
[1609570104239,0.18043158,29664.0,29662.0,0.1808088]
[1609570104640,0.18043158,29664.0,29663.0,0.0003772]
[1609570110250,2.56154461,29671.0,29663.0,0.0003772]
[1609570111252,0.18043158,29664.0,29663.0,0.0003772]
[1609570113053,2.56154461,29671.0,29663.0,4.0651772]
[1609570113456,2.77348837,29665.0,29664.0,1.0]
[1609570113656,2.77348837,29665.0,29664.0,2.00037714]
[1609570114357,2.77348837,29665.0,29664.0,1.00037714]
[1609570115557,2.77348837,29665.0,29664.0,0.00037714]
[1609570116960,2.71948837,29665.0,29664.0,0.00037714]
[1609570118462,2.69478837,29665.0,29664.0,0.00037714]
[1609570118664,2.66138837,29665.0,29664.0,0.00037714]
[1609570118862,2.59438837,29665.0,29664.0,0.00037714]
[1609570119662,2.49388837,29665.0,29664.0,0.00037714]
[1609570121266,2.39118837,29665.0,29664.0,0.00037714]
[1609570121464,2.30558837,29665.0,29664.0,0.00037714]
[1609570121665,2.30558837,29665.0,29664.0,1.00037714]
[1609570121866,2.30558837,29665.0,29664.0,2.00037714]
[1609570123065,2.23078837,29665.0,29664.0,2.00037714]
[1609570123967,2.09418837,29665.0,29664.0,2.00037714]
[1609570125468,1.79578837,29665.0,29664.0,1.00037714]
[1609570125969,1.74518837,29665.0,29664.0,1.00037714]
[1609570126371,1.67878837,29665.0,29664.0,1.00037714]
[1609570126570,1.64488837,29665.0,29664.0,1.00037714]
[1609570126971,1.56088837,29665.0,29664.0,1.00037714]
[1609570127370,1.47658837,29665.0,29664.0,1.00037714]
[1609570127571,1.39258837,29665.0,29664.0,1.00037714]
[1609570128571,1.33368837,29665.0,29664.0,1.00037714]
[1609570128773,1.31628837,29665.0,29664.0,1.00037714]
[1609570128973,1.31628837,29665.0,29664.0,0.00037714]
[1609570129476,1.31628837,29665.0,29664.0,6.00037714]
[1609570131581,1.31628837,29665.0,29664.0,0.00037714]
[1609570132479,1.23618837,29665.0,29664.0,0.00037714]
[1609570133780,0.98628837,29665.0,29664.0,0.00037714]
[1609570135282,0.81918837,29665.0,29664.0,0.00037714]
[1609570135482,0.80748837,29665.0,29664.0,6.00037714]
[1609570136083,0.80748837,29665.0,29664.0,6.04145538]
[1609570136283,0.70638837,29665.0,29664.0,6.04145538]
[1609570137085,0.54248837,29665.0,29664.0,6.04145538]
[1609570137487,0.40378837,29665.0,29664.0,6.04145538]
[1609570138186,0.32078837,29665.0,29664.0,6.04145538]
[1609570138586,0.21708837,29665.0,29664.0,6.04145538]
[1609570139087,0.18388837,29665.0,29664.0,6.04145538]
[1609570139489,0.18388837,29665.0,29664.0,0.04145538]
[1609570140389,0.10088837,29665.0,29664.0,0.04145538]
[1609570140988,0.06728837,29665.0,29664.0,0.04145538]
[1609570141589,0.06728837,29665.0,29664.0,6.04145538]
[1609570143491,2.49363298,29671.0,29664.0,6.04145538]
[1609570143690,2.49363298,29671.0,29665.0,5.1695]
[1609570143890,2.49363298,29671.0,29665.0,0.04145508]
[1609570144091,2.49363298,29671.0,29666.0,0.0414558]
[1609570144293,2.49363298,29671.0,29666.0,0.00037765]
[1609570144692,3.49363298,29671.0,29665.0,0.00037769]
[1609570144891,2.49363298,29671.0,29667.0,0.00037771]
[1609570145091,2.49363298,29671.0,29666.0,0.00037774]
[1609570145492,0.00041087,29670.0,29668.0,0.00037774]
[1609570145691,0.00041087,29670.0,29667.0,0.18080934]
[1609570145891,0.00041087,29670.0,29669.0,0.00037776]
[1609570146292,0.00041087,29670.0,29668.0,0.00037776]
[1609570146491,0.00041087,29670.0,29669.0,0.00037776]
[1609570147092,1.00041087,29670.0,29668.0,0.00037776]
[1609570147292,1.00041087,29670.0,29656.0,0.1081]
[1609570147493,1.00041087,29670.0,29644.0,2.22387797]
[1609570147494,1.00041093,29669.0,29644.0,2.22387797]
[1609570147694,0.18043158,29657.0,29644.0,2.22387797]
[1609570147894,0.18043158,29657.0,29643.0,3.40225139]
[1609570148095,0.18043158,29657.0,29652.0,0.0414727]
[1609570148296,1.0,29656.0,29652.0,0.0414727]
[1609570148697,1.0,29656.0,29651.0,0.04147544]
[1609570148896,1.0,29656.0,29653.0,0.00037784]
[1609570149097,1.0,29656.0,29652.0,0.00037786]
[1609570149297,1.0,29656.0,29654.0,0.00037786]
[1609570149697,1.0,29656.0,29653.0,0.00037786]
[1609570149898,1.0,29656.0,29655.0,0.00037786]
[1609570150098,1.0,29656.0,29646.0,0.18043158]
[1609570150099,1.0,29656.0,29654.0,0.00037786]
[1609570150501,1.0,29656.0,29646.0,0.16853158]
[1609570150899,1.0,29656.0,29647.0,0.00037788]
[1609570151700,1.18043158,29648.0,29647.0,0.00037788]
[1609570152004,1.18043158,29648.0,29644.0,0.04148153]
[1609570152202,1.18043158,29648.0,29647.0,0.00037788]
[1609570152505,1.18043158,29648.0,29645.0,0.00037792]
[1609570152803,0.2936,29660.0,29655.0,0.81956842]
[1609570153003,0.2936,29660.0,29656.0,0.00037793]
[1609570153204,0.00041108,29659.0,29656.0,0.00037793]
[1609570153603,0.18043158,29657.0,29656.0,0.00037793]
[1609570154102,0.18084268,29657.0,29656.0,0.00037793]
[1609570154502,0.18043158,29657.0,29656.0,0.00037793]
[1609570155505,1.18043158,29657.0,29656.0,0.00037793]
[1609570157507,0.18043158,29657.0,29656.0,0.00037793]
[1609570157706,0.01030629,29658.0,29656.0,0.18080951]
[1609570158107,0.01030629,29658.0,29657.0,0.00037788]
[1609570159709,0.2936,29660.0,29657.0,0.04147598]
[1609570161209,0.2936,29660.0,29657.0,0.00037788]
[1609570161510,0.2936,29660.0,29658.0,0.00037784]
[1609570161710,0.2936,29660.0,29659.0,0.18043158]
[1609570162116,0.2936,29660.0,29659.0,0.74880942]
[1609570162514,1.0,29666.0,29659.0,0.74880942]
[1609570162915,1.0,29666.0,29659.0,0.56837784]
[1609570163113,1.0,29666.0,29660.0,0.00037778]
[1609570163512,0.01033108,29669.0,29664.0,1.0]
[1609570163712,0.01033108,29669.0,29668.0,0.18043158]
[1609570164212,0.01033108,29669.0,29668.0,0.18080932]
[1609570164912,0.01033108,29669.0,29664.0,0.16303158]
[1609570165311,0.01033108,29669.0,29665.0,0.00037775]
[1609570165712,0.01033108,29669.0,29668.0,0.18043158]
[1609570166011,0.01033108,29669.0,29668.0,0.18080933]
[1609570167413,0.18043158,29670.0,29668.0,0.18080933]
[1609570167815,0.18043158,29670.0,29669.0,0.00037775]
[1609570169215,1.18043158,29670.0,29668.0,0.18043158]
[1609570169714,1.18043158,29670.0,29664.0,0.16303158]
[1609570170017,1.18043158,29670.0,29656.0,0.11325]
[1609570170216,1.18043158,29670.0,29665.0,0.00037779]
[1609570170618,1.18043158,29670.0,29654.0,0.04147009]
[1609570170818,1.18043158,29670.0,29666.0,0.00037779]
[1609570171017,1.18043158,29670.0,29658.0,0.16676]
[1609570171218,1.0,29667.0,29658.0,0.16676]
[1609570171621,1.0,29667.0,29662.0,0.18043158]
[1609570172019,1.0,29667.0,29662.0,5.53343158]
[1609570172221,1.0,29667.0,29663.0,0.00037778]
[1609570173222,1.0,29666.0,29663.0,0.00037778]
[1609570173722,0.18043158,29664.0,29663.0,0.00037778]
[1609570175022,0.18043158,29664.0,29663.0,0.04146779]
[1609570176324,0.18043158,29664.0,29663.0,0.04146778]
[1609570178025,0.18043158,29664.0,29659.0,0.04146877]
[1609570178228,0.18043158,29664.0,29663.0,0.04146864]
[1609570178425,0.18043158,29664.0,29660.0,0.04146864]
[1609570178726,0.18043158,29664.0,29663.0,0.04146893]
[1609570178925,0.18043158,29664.0,29661.0,0.04146869]
[1609570179325,1.0,29669.0,29659.0,0.04146828]
[1609570179526,1.0,29669.0,29662.0,0.04146732]
[1609570179728,1.0,29669.0,29668.0,0.18043158]
[1609570180130,1.0,29669.0,29668.0,0.18080933]
[1609570180531,1.0,29669.0,29668.0,0.22189641]
[1609570181233,0.18043158,29670.0,29668.0,0.22189641]
[1609570181633,0.18043158,29670.0,29669.0,0.00037775]
[1609570182636,0.18043158,29670.0,29665.0,0.04146599]
[1609570183038,0.18043158,29670.0,29669.0,0.00037863]
[1609570183237,2.49363298,29671.0,29666.0,0.00037863]
[1609570183439,2.49363298,29671.0,29670.0,0.00037863]
[1609570183637,2.49363298,29671.0,29670.0,0.18081021]
[1609570183840,2.49363298,29671.0,29670.0,1.18043158]
[1609570184040,2.49363298,29671.0,29670.0,1.18081021]
[1609570184239,2.49363298,29671.0,29670.0,1.22189509]
[1609570187344,2.49363298,29671.0,29670.0,0.22189509]
[1609570188746,2.49363298,29671.0,29670.0,0.18081021]
[1609570189248,2.49363298,29671.0,29670.0,1.18081021]
[1609570189548,2.49363298,29671.0,29670.0,1.22188933]
[1609570192554,2.45893298,29671.0,29670.0,1.22188933]
[1609570198866,2.45893298,29671.0,29670.0,1.32348933]
[1609570199467,2.45893298,29671.0,29670.0,1.28241021]
[1609570199870,2.45893298,29671.0,29670.0,1.32348603]
[1609570200571,2.18063298,29671.0,29670.0,1.32348603]
[1609570201872,1.84513298,29671.0,29670.0,1.32348603]
[1609570202073,0.1,29679.0,29670.0,1.42646021]
[1609570202273,0.1,29679.0,29670.0,2.42646021]
[1609570202473,1.5049346,29681.0,29670.0,2.42646021]
[1609570202673,0.9429346,29681.0,29671.0,0.00037841]
[1609570202872,0.8445346,29681.0,29671.0,0.00037841]
[1609570203472,0.7764346,29681.0,29671.0,0.00037841]
[1609570203874,0.7764346,29681.0,29680.0,1.18043158]
[1609570204076,0.7764346,29681.0,29680.0,1.35293995]
[1609570204274,0.7764346,29681.0,29680.0,1.17250837]
[1609570204876,0.7764346,29681.0,29680.0,0.17250837]
[1609570205276,0.7764346,29681.0,29680.0,1.17250837]
[1609570205879,0.6903346,29681.0,29680.0,1.35293995]
[1609570207078,0.5233346,29681.0,29680.0,1.45323995]
[1609570207277,0.5233346,29681.0,29680.0,2.45323995]
[1609570207677,0.4221346,29681.0,29680.0,2.45323995]
[1609570208280,0.4221346,29681.0,29680.0,1.45323995]
[1609570208480,0.4221346,29681.0,29680.0,2.45323995]
[1609570209279,0.3391346,29681.0,29680.0,2.45323995]
[1609570209482,0.2322346,29681.0,29680.0,1.45323995]
[1609570209681,0.0652346,29681.0,29680.0,2.45323995]
[1609570209882,0.0532346,29682.0,29680.0,2.45323995]
[1609570210084,0.0162346,29682.0,29680.0,2.45323995]
[1609570210285,0.0162346,29682.0,29681.0,0.00037835]
[1609570211186,0.01418559,29682.0,29681.0,0.00037835]
[1609570213090,2.66681525,29683.0,29681.0,0.00037835]
[1609570213291,2.58381525,29683.0,29681.0,0.00037835]
[1609570213489,0.53301525,29683.0,29681.0,0.00037835]
[1609570214691,0.40101525,29683.0,29681.0,0.00037835]
[1609570215994,0.25781525,29683.0,29681.0,0.00037835]
[1609570216191,0.21431525,29683.0,29681.0,0.00037835]
[1609570216591,0.18031525,29683.0,29682.0,5.1841]
[1609570216791,0.18031525,29683.0,29682.0,6.1841]
[1609570217192,0.16331525,29683.0,29682.0,6.18447835]
[1609570217794,0.16331525,29683.0,29682.0,5.18447835]
[1609570217993,0.16331525,29683.0,29682.0,6.18447835]
[1609570218695,0.08031525,29683.0,29682.0,6.18447835]
[1609570218894,0.08031525,29683.0,29682.0,7.18447835]
[1609570219593,1.525e-05,29683.0,29682.0,7.18447835]
[1609570220998,2.20460871,29696.0,29682.0,7.18447835]
[1609570221200,2.16960871,29696.0,29682.0,7.18447835]
[1609570221397,2.16960871,29696.0,29683.0,0.00037835]
[1609570221598,2.12160871,29696.0,29683.0,0.00037835]
[1609570221799,2.03870871,29696.0,29695.0,0.18043158]
[1609570221998,2.03870871,29696.0,29695.0,1.18043158]
[1609570222199,2.03870871,29696.0,29695.0,6.19213158]
[1609570222400,2.03870871,29696.0,29695.0,6.19250993]
[1609570222603,2.03870871,29696.0,29695.0,5.19250993]
[1609570222799,2.03870871,29696.0,29695.0,0.28850993]
[1609570223001,2.03870871,29696.0,29695.0,0.38790993]
[1609570223201,1.95560871,29696.0,29695.0,0.38790993]
[1609570223401,1.92170871,29696.0,29695.0,0.38790993]
[1609570224204,1.92170871,29696.0,29695.0,1.38790993]
[1609570224801,1.92170871,29696.0,29695.0,0.38790993]
[1609570225001,1.92170871,29696.0,29690.0,0.38753158]
[1609570225203,1.92170871,29696.0,29695.0,0.16557]
[1609570225603,1.33670871,29696.0,29695.0,0.55310158]
[1609570225803,1.03830871,29696.0,29695.0,0.16557]
[1609570226005,2.57337727,29697.0,29695.0,1.44570158]
[1609570226204,2.40967727,29697.0,29695.0,1.44570158]
[1609570226407,1.92187727,29697.0,29695.0,1.44570158]
[1609570226607,0.48827727,29697.0,29696.0,0.04142284]
[1609570226808,0.13667727,29697.0,29696.0,0.04142284]
[1609570227207,0.01377727,29697.0,29696.0,0.04142284]
[1609570227607,0.02947727,29699.0,29696.0,0.04142284]
[1609570228008,2.30246835,29708.0,29699.0,1.0]
[1609570228208,2.25236835,29708.0,29699.0,5.0136]
[1609570228408,2.24204149,29708.0,29699.0,1.00037815]
[1609570228707,2.24204149,29708.0,29700.0,0.00037815]
[1609570229107,2.24204149,29708.0,29702.0,4.2844]
[1609570229308,2.24204149,29708.0,29702.0,0.15039]
[1609570229508,2.24204149,29708.0,29702.0,5.72369]
[1609570229707,2.24204149,29708.0,29703.0,0.00037815]
[1609570229908,2.24204149,29708.0,29707.0,0.18043158]
[1609570230106,2.23844149,29708.0,29707.0,0.18043158]
[1609570230308,2.23844149,29708.0,29707.0,0.18080973]
[1609570230309,2.23639367,29708.0,29707.0,0.18080973]
[1609570231710,2.23639367,29708.0,29707.0,0.18043158]
[1609570236614,2.23639367,29708.0,29702.0,5.36639]
[1609570237414,2.23639367,29708.0,29702.0,0.15039]
[1609570237616,2.23639367,29708.0,29703.0,0.1017]
[1609570237815,2.23639367,29708.0,29705.0,4.2224]
[1609570238014,2.23639367,29708.0,29707.0,0.18043158]
[1609570241917,2.41682525,29708.0,29707.0,0.18043158]
[1609570242618,2.41682525,29708.0,29703.0,0.14613]
[1609570242819,2.41682525,29708.0,29695.0,0.16557]
[1609570243018,2.41682525,29708.0,29692.0,5.2129]
[1609570243218,2.41682525,29708.0,29696.0,0.00037827]
[1609570243418,2.41682525,29708.0,29696.0,0.11680827]
[1609570243620,2.41682525,29708.0,29696.0,0.11643]
[1609570243819,2.41682525,29708.0,29697.0,0.00037827]
[1609570244019,2.23639367,29708.0,29706.0,0.18043158]
[1609570245922,0.18043158,29707.0,29706.0,0.18043158]
[1609570247923,0.18043158,29707.0,29697.0,0.18043158]
[1609570248324,0.18043158,29707.0,29697.0,0.18080989]
[1609570248524,0.18043158,29707.0,29698.0,0.00037831]
[1609570250029,2.23639367,29708.0,29705.0,0.18043158]
[1609570250629,2.23639367,29708.0,29706.0,0.00037831]
[1609570251430,2.23639367,29708.0,29697.0,0.00037831]
[1609570252131,2.23639367,29708.0,29707.0,0.18043158]
[1609570252632,2.23639367,29708.0,29707.0,0.18080986]
[1609570258643,2.23639367,29708.0,29707.0,0.00037828]
[1609570259241,2.23639367,29708.0,29705.0,0.04142051]
[1609570259443,2.23639367,29708.0,29707.0,0.00037826]
[1609570259642,2.23639367,29708.0,29706.0,0.00037826]
[1609570259943,2.23639367,29708.0,29707.0,0.00037826]
[1609570260143,2.41682525,29708.0,29707.0,0.18080984]
[1609570260542,2.41682525,29708.0,29707.0,0.18043158]
[1609570260743,2.41682525,29708.0,29707.0,0.18080984]
[1609570262345,2.41682525,29708.0,29707.0,0.22185192]
[1609570262544,2.23639367,29708.0,29707.0,0.22185192]
[1609570272458,2.23639367,29708.0,29707.0,0.04142034]
[1609570272858,2.23639367,29708.0,29707.0,1.18043158]
[1609570273258,2.23639367,29708.0,29707.0,1.04141983]
[1609570273460,2.23639367,29708.0,29707.0,1.00037826]
[1609570274561,2.23639367,29708.0,29693.0,2.16614918]
[1609570274761,3.23639367,29708.0,29693.0,2.16614918]
[1609570274964,0.18043158,29694.0,29693.0,2.16614918]
[1609570275162,0.18043158,29694.0,29692.0,2.16607277]
[1609570275360,0.18043158,29694.0,29693.0,0.04142595]
[1609570275561,0.18043158,29694.0,29693.0,0.20930595]
[1609570276662,0.18043158,29694.0,29693.0,0.16825831]
[1609570280066,0.18043158,29694.0,29693.0,0.16825839]
[1609570282969,0.18043158,29694.0,29693.0,0.34868997]
[1609570284772,0.18043158,29694.0,29686.0,4.98724158]
[1609570284975,0.15354,29699.0,29693.0,0.18043158]
[1609570285171,0.15354,29699.0,29686.0,0.10483]
[1609570285373,1.15354,29699.0,29694.0,0.00037836]
[1609570285572,1.15354,29699.0,29687.0,0.00037836]
[1609570285974,1.15354,29699.0,29695.0,0.00037836]
[1609570286171,1.15354,29699.0,29688.0,0.00037836]
[1609570286373,1.15354,29699.0,29696.0,0.00037836]
[1609570286773,1.15354,29699.0,29689.0,0.00037836]
[1609570286975,1.15354,29699.0,29697.0,0.00037836]
[1609570287175,1.15354,29699.0,29690.0,0.18080994]
[1609570287377,0.15354,29699.0,29690.0,0.18080994]
[1609570287575,1.0,29702.0,29698.0,0.00037836]
[1609570287775,1.0,29702.0,29691.0,0.00037836]
[1609570287975,1.0,29702.0,29699.0,0.00037836]
[1609570288276,1.0,29702.0,29691.0,0.00037836]
[1609570288684,1.0,29702.0,29700.0,0.00037836]
[1609570288878,0.18043158,29701.0,29692.0,0.00037836]
[1609570289077,0.18043158,29701.0,29690.0,0.18043158]
[1609570289477,0.18043158,29701.0,29693.0,0.00037836]
[1609570289677,0.18043158,29701.0,29691.0,0.00037836]
[1609570289879,0.18043158,29701.0,29694.0,0.00037836]
[1609570290077,0.18043158,29701.0,29692.0,0.00037836]
[1609570290479,0.18043158,29701.0,29695.0,0.00037836]
[1609570290678,0.18043158,29701.0,29691.0,0.00037836]
[1609570290879,0.18043158,29701.0,29696.0,0.00037836]
[1609570291078,1.13756,29703.0,29696.0,0.00037836]
[1609570291281,1.0,29702.0,29692.0,0.00037836]
[1609570291480,1.0,29702.0,29691.0,0.00037836]
[1609570291679,1.0,29702.0,29693.0,0.00037836]
[1609570291980,1.0,29702.0,29692.0,0.00037838]
[1609570292381,1.0,29702.0,29694.0,0.00037838]
[1609570292581,1.0,29702.0,29693.0,0.00037838]
[1609570292780,1.0,29702.0,29695.0,0.00037838]
[1609570292979,0.18043158,29696.0,29695.0,0.00037838]
[1609570293180,0.18043158,29696.0,29694.0,0.00037838]
[1609570293379,0.18043158,29696.0,29695.0,0.00037838]
[1609570293981,0.18043158,29696.0,29687.0,0.00037838]
[1609570294181,0.18043158,29696.0,29695.0,0.00037838]
[1609570294381,0.18043158,29696.0,29687.0,0.00037838]
[1609570294782,0.18043158,29696.0,29695.0,0.00037838]
[1609570294983,0.17838258,29696.0,29688.0,0.00037838]
[1609570295182,0.17838258,29696.0,29695.0,0.00037838]
[1609570295381,0.17838258,29696.0,29689.0,0.00037838]
[1609570295581,3.98298258,29696.0,29689.0,0.00037838]
[1609570295783,3.98298258,29696.0,29695.0,0.00037841]
[1609570295984,3.98298258,29696.0,29690.0,0.00037841]
[1609570296184,3.98298258,29696.0,29695.0,0.00037841]
[1609570296583,3.98298258,29696.0,29691.0,0.00037841]
[1609570296783,3.98298258,29696.0,29695.0,0.00037841]
[1609570296983,3.98298258,29696.0,29692.0,0.00037841]
[1609570297384,4.98298258,29696.0,29695.0,0.00037841]
[1609570297587,1.17838258,29696.0,29687.0,0.00037841]
[1609570297785,1.17838258,29696.0,29695.0,0.00037841]
[1609570298084,1.17838258,29696.0,29688.0,0.00037843]
[1609570298485,1.17838258,29696.0,29687.0,0.00037843]
[1609570298685,1.17838258,29696.0,29689.0,0.00037843]
[1609570298884,1.17838258,29696.0,29688.0,0.00037843]
[1609570299084,0.18043158,29690.0,29688.0,0.00037843]
[1609570299285,1.18043158,29690.0,29687.0,0.00037843]
[1609570299486,1.18043158,29690.0,29689.0,0.00037843]
[1609570299687,1.18043158,29690.0,29688.0,0.00037843]
[1609570300087,1.18043158,29690.0,29689.0,0.00037843]
[1609570300485,1.18043158,29690.0,29687.0,0.00037843]
[1609570300785,1.18043158,29690.0,29689.0,0.00037843]
[1609570300985,1.18043158,29690.0,29688.0,0.00037843]
[1609570301185,0.7082,29689.0,29688.0,0.00037843]